[Event "Titled Tuesday Blitz October 18 Late 2022"]
[White "Jaracz, Pawel"]
[Black "Keymer, Vincent"]
[WhiteFideId "1102222"]
[BlackFideId "12940690"]
[WhiteElo "2459"]
[BlackElo "2600"]
[Result "0-1"]
[Round "05"]
[TimeControl "180+1"]
[Date "2022.10.18"]
[WhiteClock "0:00:02"]
[BlackClock "0:00:04"]

1. e4 {[%clk 0:03:00]}  c6 {[%clk 0:03:00]} 2. d4 {[%clk 0:03:00]}  d5 {[%clk 0:03:01]} 3. Nc3 {[%clk 0:02:55]}  dxe4 {[%clk 0:03:00]} 4. Nxe4 {[%clk 0:02:56]}  Nf6 {[%clk 0:03:00]} 5. Nxf6+ {[%clk 0:02:55]}  exf6 {[%clk 0:03:01]} 6. Be3 {[%clk 0:02:52]}  Bd6 {[%clk 0:03:00]} 7. Bd3 {[%clk 0:02:52]}  Nd7 {[%clk 0:03:00]} 8. Ne2 {[%clk 0:02:50]}  f5 {[%clk 0:03:00]} 9. O-O {[%clk 0:02:47]}  Nf6 {[%clk 0:03:00]} 10. h3 {[%clk 0:02:45]}  O-O {[%clk 0:02:57]} 11. c4 {[%clk 0:02:43]}  Re8 {[%clk 0:02:50]} 12. Qc2 {[%clk 0:02:42]}  g6 {[%clk 0:02:41]} 13. Rad1 {[%clk 0:02:40]}  Bd7 {[%clk 0:02:39]} 14. Bg5 {[%clk 0:02:36]}  Rc8 {[%clk 0:02:31]} 15. Nc3 {[%clk 0:02:35]}  Bb8 {[%clk 0:02:18]} 16. Rfe1 {[%clk 0:02:32]}  Qc7 {[%clk 0:02:17]} 17. g3 {[%clk 0:02:28]}  Nh5 {[%clk 0:02:15]} 18. Ne2 {[%clk 0:02:17]}  Qd6 {[%clk 0:01:42]} 19. Nf4 {[%clk 0:02:13]}  Rxe1+ {[%clk 0:01:04]} 20. Rxe1 {[%clk 0:02:13]}  Nxf4 {[%clk 0:01:05]} 21. Bxf4 {[%clk 0:02:12]}  Qxd4 {[%clk 0:01:05]} 22. Bxb8 {[%clk 0:01:17]}  Rxb8 {[%clk 0:01:06]} 23. Re7 {[%clk 0:01:16]}  Be6 {[%clk 0:01:05]} 24. Qc3 {[%clk 0:00:56]}  Qxc3 {[%clk 0:00:51]} 25. bxc3 {[%clk 0:00:57]}  c5 {[%clk 0:00:52]} 26. Be2 {[%clk 0:00:53]}  a5 {[%clk 0:00:43]} 27. Kg2 {[%clk 0:00:48]}  b6 {[%clk 0:00:41]} 28. Kf3 {[%clk 0:00:44]}  Kg7 {[%clk 0:00:34]} 29. Rc7 {[%clk 0:00:41]}  Kf6 {[%clk 0:00:26]} 30. h4 {[%clk 0:00:40]}  Ke5 {[%clk 0:00:25]} 31. Ke3 {[%clk 0:00:39]}  Kd6 {[%clk 0:00:25]} 32. Ra7 {[%clk 0:00:40]}  h6 {[%clk 0:00:22]} 33. Kf4 {[%clk 0:00:39]}  f6 {[%clk 0:00:08]} 34. Rh7 {[%clk 0:00:32]}  g5+ {[%clk 0:00:09]} 35. Ke3 {[%clk 0:00:31]}  f4+ {[%clk 0:00:05]} 36. gxf4 {[%clk 0:00:31]}  Re8 {[%clk 0:00:04]} 37. Kd2 {[%clk 0:00:20]}  gxf4 {[%clk 0:00:03]} 38. Rxh6 {[%clk 0:00:19]}  Ke5 {[%clk 0:00:04]} 39. Rh5+ {[%clk 0:00:18]}  f5 {[%clk 0:00:05]} 40. Rh6 {[%clk 0:00:16]}  Rd8+ {[%clk 0:00:05]} 41. Ke1 {[%clk 0:00:16]}  Rg8 {[%clk 0:00:05]} 42. Kf1 {[%clk 0:00:15]}  f3 {[%clk 0:00:04]} 43. Bxf3 {[%clk 0:00:11]}  Bxc4+ {[%clk 0:00:04]} 44. Be2 {[%clk 0:00:12]}  Be6 {[%clk 0:00:04]} 45. h5 {[%clk 0:00:11]}  a4 {[%clk 0:00:05]} 46. a3 {[%clk 0:00:10]}  f4 {[%clk 0:00:03]} 47. Rh7 {[%clk 0:00:04]}  Bd5 {[%clk 0:00:01]} 48. Ke1 {[%clk 0:00:04]}  f3 {[%clk 0:00:01]} 49. Bd3 {[%clk 0:00:04]}  Rg1+ {[%clk 0:00:02]} 50. Kd2 {[%clk 0:00:05]}  Ra1 {[%clk 0:00:02]} 51. Re7+ {[%clk 0:00:04]}  Kf4 {[%clk 0:00:03]} 52. h6 {[%clk 0:00:04]}  Ra2+ {[%clk 0:00:03]} 53. Kc1 {[%clk 0:00:04]}  Rxf2 {[%clk 0:00:03]} 54. h7 {[%clk 0:00:03]}  Rh2 {[%clk 0:00:04]} 55. Rg7 {[%clk 0:00:02]}  c4 {[%clk 0:00:04]} 0-1


[Site "https://www.chess.com"]

[Event "Titled Tuesday Blitz October 18 Late 2022"]
[White "Jimenez Almeida, Luis David"]
[Black "Bogaudinov, Rushan"]
[WhiteFideId "22242244"]
[BlackFideId "4129288"]
[WhiteElo "2158"]
[BlackElo "1945"]
[Result "0-1"]
[Round "05"]
[TimeControl "180+1"]
[Date "2022.10.19"]
[WhiteClock "0:00:06"]
[BlackClock "0:00:15"]

1. e4 {[%clk 0:03:00]}  c5 {[%clk 0:02:46]} 2. Nc3 {[%clk 0:03:00]}  Nc6 {[%clk 0:02:45]} 3. g3 {[%clk 0:03:00]}  h5 {[%clk 0:02:45]} 4. h4 {[%clk 0:02:59]}  e6 {[%clk 0:02:45]} 5. Bg2 {[%clk 0:02:59]}  Nf6 {[%clk 0:02:45]} 6. Nge2 {[%clk 0:02:58]}  d5 {[%clk 0:02:45]} 7. exd5 {[%clk 0:02:56]}  exd5 {[%clk 0:02:45]} 8. d3 {[%clk 0:02:50]}  d4 {[%clk 0:02:44]} 9. Ne4 {[%clk 0:02:49]}  Be7 {[%clk 0:02:43]} 10. Bf4 {[%clk 0:02:44]}  O-O {[%clk 0:02:42]} 11. Qd2 {[%clk 0:02:40]}  Be6 {[%clk 0:02:30]} 12. Ng5 {[%clk 0:02:38]}  Bd5 {[%clk 0:02:29]} 13. O-O {[%clk 0:02:22]}  Bxg2 {[%clk 0:02:26]} 14. Kxg2 {[%clk 0:02:23]}  Qd5+ {[%clk 0:02:27]} 15. Kg1 {[%clk 0:02:22]}  Ng4 {[%clk 0:02:20]} 16. b3 {[%clk 0:02:10]}  f6 {[%clk 0:02:08]} 17. Ne4 {[%clk 0:02:07]}  Rae8 {[%clk 0:02:06]} 18. Rae1 {[%clk 0:01:59]}  Nce5 {[%clk 0:02:05]} 19. Bxe5 {[%clk 0:01:58]}  Nxe5 {[%clk 0:02:02]} 20. f4 {[%clk 0:01:39]}  Ng4 {[%clk 0:02:00]} 21. Nc1 {[%clk 0:01:16]}  f5 {[%clk 0:01:55]} 22. c4 {[%clk 0:01:02]}  Qc6 {[%clk 0:01:52]} 23. Ng5 {[%clk 0:00:45]}  Bxg5 {[%clk 0:01:47]} 24. hxg5 {[%clk 0:00:46]}  Rxe1 {[%clk 0:01:35]} 25. Rxe1 {[%clk 0:00:43]}  Re8 {[%clk 0:01:25]} 26. Rxe8+ {[%clk 0:00:38]}  Qxe8 {[%clk 0:01:25]} 27. Qe2 {[%clk 0:00:38]}  Qe3+ {[%clk 0:01:08]} 28. Qxe3 {[%clk 0:00:37]}  Nxe3 {[%clk 0:01:08]} 29. Kf2 {[%clk 0:00:35]}  Kf7 {[%clk 0:01:04]} 30. a3 {[%clk 0:00:33]}  Nc2 {[%clk 0:00:57]} 31. a4 {[%clk 0:00:33]}  Ke6 {[%clk 0:00:52]} 32. Ne2 {[%clk 0:00:33]}  Kd6 {[%clk 0:00:47]} 33. Ng1 {[%clk 0:00:34]}  Na1 {[%clk 0:00:48]} 34. Nf3 {[%clk 0:00:32]}  Nxb3 {[%clk 0:00:45]} 35. Ne5 {[%clk 0:00:31]}  Nd2 {[%clk 0:00:39]} 36. Ke2 {[%clk 0:00:28]}  Ne4 {[%clk 0:00:38]} 37. dxe4 {[%clk 0:00:26]}  fxe4 {[%clk 0:00:38]} 38. Ng6 {[%clk 0:00:23]}  Ke6 {[%clk 0:00:34]} 39. Nh4 {[%clk 0:00:23]}  b6 {[%clk 0:00:25]} 40. Ng6 {[%clk 0:00:19]}  Kf5 {[%clk 0:00:24]} 41. Ne5 {[%clk 0:00:16]}  h4 {[%clk 0:00:19]} 42. gxh4 {[%clk 0:00:14]}  Kxf4 {[%clk 0:00:20]} 43. Nf7 {[%clk 0:00:15]}  Kg4 {[%clk 0:00:16]} 44. Nd6 {[%clk 0:00:09]}  e3 {[%clk 0:00:15]} 45. g6 {[%clk 0:00:08]}  Kxh4 {[%clk 0:00:14]} 46. Nf5+ {[%clk 0:00:08]}  Kg5 {[%clk 0:00:14]} 47. Nxg7 {[%clk 0:00:08]}  Kxg6 {[%clk 0:00:15]} 48. Ne6 {[%clk 0:00:08]}  Kf5 {[%clk 0:00:15]} 49. Nc7 {[%clk 0:00:06]}  Ke4 {[%clk 0:00:15]} 50. Nd5 {[%clk 0:00:06]}  d3+ {[%clk 0:00:15]} 51. Ke1 {[%clk 0:00:07]}  Kd4 {[%clk 0:00:15]} 52. Kd1 {[%clk 0:00:06]}  e2+ {[%clk 0:00:15]} 53. Kd2 {[%clk 0:00:06]}  Kxc4 {[%clk 0:00:16]} 54. Ne3+ {[%clk 0:00:06]}  Kb4 {[%clk 0:00:14]} 55. Ng2 {[%clk 0:00:06]}  c4 {[%clk 0:00:14]} 56. Ne1 {[%clk 0:00:05]}  Kxa4 {[%clk 0:00:14]} 57. Kc3 {[%clk 0:00:06]}  b5 {[%clk 0:00:15]} 58. Nf3 {[%clk 0:00:06]}  Ka3 {[%clk 0:00:14]} 59. Ne1 {[%clk 0:00:06]}  Ka2 {[%clk 0:00:14]} 60. Nf3 {[%clk 0:00:06]}  Kb1 {[%clk 0:00:15]} 61. Ne1 {[%clk 0:00:06]}  Kc1 {[%clk 0:00:15]} 62. Nf3 {[%clk 0:00:06]}  Kd1 {[%clk 0:00:15]} 63. Kb2 {[%clk 0:00:06]}  e1=Q {[%clk 0:00:15]} 0-1


[Site "https://www.chess.com"]

[Event "Titled Tuesday Blitz October 18 Late 2022"]
[White "Kamsky, Gata"]
[Black "Yanchenko, Roman"]
[WhiteFideId "2000024"]
[BlackFideId "4137329"]
[WhiteElo "2666"]
[BlackElo "2514"]
[Result "1-0"]
[Round "05"]
[TimeControl "180+1"]
[Date "2022.10.18"]
[WhiteClock "0:00:59"]
[BlackClock "0:00:04"]

1. e4 {[%clk 0:03:00]}  e6 {[%clk 0:03:00]} 2. d4 {[%clk 0:02:57]}  d5 {[%clk 0:03:01]} 3. Nc3 {[%clk 0:02:57]}  Bb4 {[%clk 0:03:01]} 4. e5 {[%clk 0:02:55]}  Ne7 {[%clk 0:03:01]} 5. a3 {[%clk 0:02:54]}  Bxc3+ {[%clk 0:03:01]} 6. bxc3 {[%clk 0:02:54]}  b6 {[%clk 0:03:02]} 7. Qg4 {[%clk 0:02:53]}  Kf8 {[%clk 0:03:03]} 8. Nf3 {[%clk 0:02:47]}  Ba6 {[%clk 0:03:03]} 9. Bd3 {[%clk 0:02:46]}  c5 {[%clk 0:03:03]} 10. O-O {[%clk 0:02:39]}  Bxd3 {[%clk 0:02:44]} 11. cxd3 {[%clk 0:02:37]}  Nbc6 {[%clk 0:02:44]} 12. dxc5 {[%clk 0:02:36]}  bxc5 {[%clk 0:02:43]} 13. a4 {[%clk 0:02:30]}  Qa5 {[%clk 0:02:37]} 14. Ba3 {[%clk 0:02:26]}  h5 {[%clk 0:02:34]} 15. Qf4 {[%clk 0:02:21]}  Kg8 {[%clk 0:02:29]} 16. Rfc1 {[%clk 0:02:01]}  Rb8 {[%clk 0:02:04]} 17. Qe3 {[%clk 0:01:56]}  d4 {[%clk 0:01:40]} 18. cxd4 {[%clk 0:01:54]}  Nf5 {[%clk 0:01:40]} 19. Qe4 {[%clk 0:01:42]}  Ncxd4 {[%clk 0:01:34]} 20. Bxc5 {[%clk 0:01:38]}  Nb3 {[%clk 0:01:03]} 21. Rab1 {[%clk 0:01:35]}  Kh7 {[%clk 0:01:03]} 22. Bd6 {[%clk 0:01:22]}  Rbc8 {[%clk 0:00:22]} 23. Rd1 {[%clk 0:01:15]}  Nc5 {[%clk 0:00:20]} 24. Bxc5 {[%clk 0:01:09]}  Qxc5 {[%clk 0:00:20]} 25. h3 {[%clk 0:01:08]}  Rc7 {[%clk 0:00:19]} 26. g4 {[%clk 0:01:07]}  hxg4 {[%clk 0:00:16]} 27. hxg4 {[%clk 0:01:07]}  Kg6 {[%clk 0:00:06]} 28. gxf5+ {[%clk 0:01:06]}  exf5 {[%clk 0:00:06]} 29. Qf4 {[%clk 0:01:06]}  Rh5 {[%clk 0:00:06]} 30. Kg2 {[%clk 0:01:01]}  Rd7 {[%clk 0:00:04]} 31. Rh1 {[%clk 0:00:59]} 1-0


[Site "https://www.chess.com"]

[Event "Titled Tuesday Blitz October 18 Late 2022"]
[White "Li, Ruifeng"]
[Black "Bortnyk, Olexandr"]
[WhiteFideId "2061074"]
[BlackFideId "14120828"]
[WhiteElo "2441"]
[BlackElo "2723"]
[Result "0-1"]
[Round "05"]
[TimeControl "180+1"]
[Date "2022.10.18"]
[WhiteClock "0:00:37"]
[BlackClock "0:01:50"]

1. b3 {[%clk 0:03:00]}  d5 {[%clk 0:02:47]} 2. Bb2 {[%clk 0:03:01]}  Bf5 {[%clk 0:02:47]} 3. d3 {[%clk 0:02:58]}  e6 {[%clk 0:02:47]} 4. g3 {[%clk 0:02:58]}  Nf6 {[%clk 0:02:47]} 5. Bg2 {[%clk 0:02:59]}  h6 {[%clk 0:02:48]} 6. Nd2 {[%clk 0:02:59]}  Bh7 {[%clk 0:02:48]} 7. e4 {[%clk 0:02:59]}  Be7 {[%clk 0:02:48]} 8. Ne2 {[%clk 0:03:00]}  c6 {[%clk 0:02:46]} 9. O-O {[%clk 0:03:00]}  O-O {[%clk 0:02:46]} 10. e5 {[%clk 0:02:55]}  Nfd7 {[%clk 0:02:45]} 11. Nf4 {[%clk 0:02:56]}  a5 {[%clk 0:02:44]} 12. a3 {[%clk 0:02:55]}  a4 {[%clk 0:02:43]} 13. b4 {[%clk 0:02:55]}  c5 {[%clk 0:02:44]} 14. c4 {[%clk 0:02:47]}  d4 {[%clk 0:02:41]} 15. Re1 {[%clk 0:02:25]}  Nc6 {[%clk 0:02:37]} 16. Nf3 {[%clk 0:02:16]}  cxb4 {[%clk 0:02:36]} 17. Nxd4 {[%clk 0:02:10]}  Nxd4 {[%clk 0:02:00]} 18. Bxd4 {[%clk 0:02:09]}  Nc5 {[%clk 0:02:01]} 19. Bxc5 {[%clk 0:02:00]}  Bxc5 {[%clk 0:02:02]} 20. axb4 {[%clk 0:02:00]}  Bxb4 {[%clk 0:02:03]} 21. Bxb7 {[%clk 0:01:35]}  Ra7 {[%clk 0:02:00]} 22. Bc6 {[%clk 0:01:23]}  Bxe1 {[%clk 0:01:59]} 23. Qxe1 {[%clk 0:01:23]}  a3 {[%clk 0:01:54]} 24. Qc3 {[%clk 0:01:13]}  Qa5 {[%clk 0:01:54]} 25. Qxa5 {[%clk 0:00:50]}  Rxa5 {[%clk 0:01:55]} 26. Bb5 {[%clk 0:00:50]}  g5 {[%clk 0:01:53]} 27. Nh5 {[%clk 0:00:45]}  Bxd3 {[%clk 0:01:53]} 28. Nf6+ {[%clk 0:00:45]}  Kg7 {[%clk 0:01:53]} 29. f4 {[%clk 0:00:40]}  Rc8 {[%clk 0:01:53]} 30. Kf2 {[%clk 0:00:38]}  Bxc4 {[%clk 0:01:52]} 31. Bxc4 {[%clk 0:00:37]}  Rxc4 {[%clk 0:01:53]} 32. Rd1 {[%clk 0:00:37]}  Rc8 {[%clk 0:01:50]} 0-1


[Site "https://www.chess.com"]

[Event "Titled Tuesday Blitz October 18 Late 2022"]
[White "Lizak, Peter"]
[Black "Lorenzo De La Riva, Lazaro"]
[WhiteFideId "731595"]
[BlackFideId "2268809"]
[WhiteElo "2722"]
[BlackElo "2411"]
[Result "1-0"]
[Round "05"]
[TimeControl "180+1"]
[Date "2022.10.19"]
[WhiteClock "0:00:54"]
[BlackClock "0:00:14"]

1. d4 {[%clk 0:03:00]}  d5 {[%clk 0:02:55]} 2. Nc3 {[%clk 0:03:00]}  Nf6 {[%clk 0:02:54]} 3. Bf4 {[%clk 0:03:00]}  e6 {[%clk 0:02:54]} 4. Nb5 {[%clk 0:02:59]}  Na6 {[%clk 0:02:53]} 5. a3 {[%clk 0:03:00]}  Be7 {[%clk 0:02:52]} 6. e3 {[%clk 0:03:00]}  O-O {[%clk 0:02:50]} 7. Nf3 {[%clk 0:03:00]}  Nh5 {[%clk 0:02:44]} 8. Be5 {[%clk 0:02:59]}  f6 {[%clk 0:02:41]} 9. Bg3 {[%clk 0:02:58]}  c6 {[%clk 0:02:33]} 10. Nc3 {[%clk 0:02:58]}  Nxg3 {[%clk 0:02:30]} 11. hxg3 {[%clk 0:02:58]}  f5 {[%clk 0:02:27]} 12. Ne5 {[%clk 0:02:56]}  Bf6 {[%clk 0:02:22]} 13. Qh5 {[%clk 0:02:56]}  h6 {[%clk 0:02:17]} 14. g4 {[%clk 0:02:48]}  Bxe5 {[%clk 0:02:16]} 15. dxe5 {[%clk 0:02:48]}  Nc5 {[%clk 0:02:10]} 16. f4 {[%clk 0:02:44]}  Qe8 {[%clk 0:01:59]} 17. Qh4 {[%clk 0:02:32]}  Qg6 {[%clk 0:01:55]} 18. gxf5 {[%clk 0:02:26]}  Qxf5 {[%clk 0:01:53]} 19. O-O-O {[%clk 0:02:24]}  Qg6 {[%clk 0:01:14]} 20. g4 {[%clk 0:02:23]}  a5 {[%clk 0:01:12]} 21. Ne2 {[%clk 0:01:47]}  Ne4 {[%clk 0:01:06]} 22. Nd4 {[%clk 0:01:46]}  c5 {[%clk 0:01:02]} 23. Nb5 {[%clk 0:01:35]}  Bd7 {[%clk 0:00:56]} 24. Nd6 {[%clk 0:01:31]}  Nxd6 {[%clk 0:00:56]} 25. exd6 {[%clk 0:01:31]}  c4 {[%clk 0:00:56]} 26. Bg2 {[%clk 0:01:21]}  b5 {[%clk 0:00:48]} 27. f5 {[%clk 0:00:58]}  Qg5 {[%clk 0:00:25]} 28. Qxg5 {[%clk 0:00:58]}  hxg5 {[%clk 0:00:25]} 29. fxe6 {[%clk 0:00:58]}  Bxe6 {[%clk 0:00:25]} 30. Rxd5 {[%clk 0:00:58]}  Bxd5 {[%clk 0:00:23]} 31. Bxd5+ {[%clk 0:00:59]}  Rf7 {[%clk 0:00:14]} 32. Rf1 {[%clk 0:00:54]}  Rf8 {[%clk 0:00:13]} 33. d7 {[%clk 0:00:54]}  g6 {[%clk 0:00:13]} 34. Rxf7 {[%clk 0:00:54]}  Rxf7 {[%clk 0:00:13]} 35. d8=Q+ {[%clk 0:00:54]}  Kg7 {[%clk 0:00:14]} 36. Bxf7 {[%clk 0:00:54]} 1-0


[Site "https://www.chess.com"]

[Event "Titled Tuesday Blitz October 18 Late 2022"]
[White "Machidon, Cristi"]
[Black "Petrovic, Aleksa"]
[WhiteFideId "13904590"]
[BlackFideId "967629"]
[WhiteElo "2638"]
[BlackElo "2485"]
[Result "1-0"]
[Round "05"]
[TimeControl "180+1"]
[Date "2022.10.19"]
[WhiteClock "0:00:07"]
[BlackClock "0:00:04"]

1. Nf3 {[%clk 0:03:00]}  Nf6 {[%clk 0:02:58]} 2. g3 {[%clk 0:03:00]}  d5 {[%clk 0:02:57]} 3. Bg2 {[%clk 0:03:01]}  c6 {[%clk 0:02:57]} 4. d3 {[%clk 0:03:02]}  Bg4 {[%clk 0:02:57]} 5. O-O {[%clk 0:03:02]}  e6 {[%clk 0:02:57]} 6. Nbd2 {[%clk 0:03:03]}  Be7 {[%clk 0:02:58]} 7. e4 {[%clk 0:03:03]}  O-O {[%clk 0:02:58]} 8. Qe1 {[%clk 0:03:01]}  Nbd7 {[%clk 0:02:58]} 9. e5 {[%clk 0:03:00]}  Ne8 {[%clk 0:02:58]} 10. h4 {[%clk 0:02:51]}  h6 {[%clk 0:02:48]} 11. a4 {[%clk 0:02:24]}  Qa5 {[%clk 0:02:44]} 12. c3 {[%clk 0:02:21]}  Qa6 {[%clk 0:02:42]} 13. d4 {[%clk 0:02:03]}  Bf5 {[%clk 0:02:41]} 14. Qe3 {[%clk 0:02:00]}  c5 {[%clk 0:02:37]} 15. Re1 {[%clk 0:01:56]}  Rc8 {[%clk 0:02:34]} 16. Bf1 {[%clk 0:01:54]}  Qa5 {[%clk 0:02:28]} 17. Bb5 {[%clk 0:01:32]}  Qd8 {[%clk 0:02:13]} 18. Kg2 {[%clk 0:01:18]}  a6 {[%clk 0:01:55]} 19. Bd3 {[%clk 0:01:11]}  cxd4 {[%clk 0:01:50]} 20. cxd4 {[%clk 0:01:06]}  Bxd3 {[%clk 0:01:49]} 21. Qxd3 {[%clk 0:01:06]}  Qc7 {[%clk 0:01:45]} 22. Nh2 {[%clk 0:00:47]}  Qc2 {[%clk 0:01:44]} 23. Qf3 {[%clk 0:00:44]}  Bb4 {[%clk 0:01:41]} 24. Nhf1 {[%clk 0:00:38]}  f6 {[%clk 0:01:06]} 25. Qg4 {[%clk 0:00:33]}  fxe5 {[%clk 0:01:04]} 26. Qxe6+ {[%clk 0:00:31]}  Kh8 {[%clk 0:01:05]} 27. Qxd7 {[%clk 0:00:30]}  Nf6 {[%clk 0:00:57]} 28. Qxb7 {[%clk 0:00:19]}  Rb8 {[%clk 0:00:53]} 29. Qxa6 {[%clk 0:00:19]}  Ng4 {[%clk 0:00:52]} 30. Re2 {[%clk 0:00:17]}  exd4 {[%clk 0:00:47]} 31. Qe6 {[%clk 0:00:14]}  d3 {[%clk 0:00:43]} 32. Qxg4 {[%clk 0:00:13]}  dxe2 {[%clk 0:00:42]} 33. Qxe2 {[%clk 0:00:14]}  d4 {[%clk 0:00:39]} 34. Qe4 {[%clk 0:00:13]}  Qd1 {[%clk 0:00:35]} 35. Nf3 {[%clk 0:00:10]}  Rbe8 {[%clk 0:00:32]} 36. Qb7 {[%clk 0:00:09]}  d3 {[%clk 0:00:28]} 37. Bxh6 {[%clk 0:00:07]}  Qxf3+ {[%clk 0:00:22]} 38. Qxf3 {[%clk 0:00:06]}  Rxf3 {[%clk 0:00:23]} 39. Kxf3 {[%clk 0:00:06]}  gxh6 {[%clk 0:00:23]} 40. Rd1 {[%clk 0:00:06]}  Rd8 {[%clk 0:00:20]} 41. Ne3 {[%clk 0:00:06]}  Bc5 {[%clk 0:00:20]} 42. Ke4 {[%clk 0:00:05]}  d2 {[%clk 0:00:17]} 43. Nc4 {[%clk 0:00:03]}  Rd4+ {[%clk 0:00:17]} 44. Ke5 {[%clk 0:00:04]}  Rxc4 {[%clk 0:00:18]} 45. Rxd2 {[%clk 0:00:04]}  Rxa4 {[%clk 0:00:18]} 46. Kd5 {[%clk 0:00:03]}  Bf8 {[%clk 0:00:17]} 47. Ke6 {[%clk 0:00:03]}  Ra6+ {[%clk 0:00:17]} 48. Kf7 {[%clk 0:00:03]}  Bg7 {[%clk 0:00:13]} 49. Re2 {[%clk 0:00:03]}  Rf6+ {[%clk 0:00:12]} 50. Ke7 {[%clk 0:00:04]}  Kg8 {[%clk 0:00:10]} 51. Kd7 {[%clk 0:00:05]}  Rf7+ {[%clk 0:00:10]} 52. Kc6 {[%clk 0:00:05]}  Rf6+ {[%clk 0:00:09]} 53. Kb5 {[%clk 0:00:05]}  Rf8 {[%clk 0:00:09]} 54. b4 {[%clk 0:00:05]}  Rb8+ {[%clk 0:00:09]} 55. Kc4 {[%clk 0:00:06]}  Rc8+ {[%clk 0:00:09]} 56. Kb3 {[%clk 0:00:06]}  Rb8 {[%clk 0:00:09]} 57. f4 {[%clk 0:00:06]}  Bf8 {[%clk 0:00:08]} 58. Re4 {[%clk 0:00:06]}  Kf7 {[%clk 0:00:09]} 59. g4 {[%clk 0:00:05]}  Rb6 {[%clk 0:00:08]} 60. Rc4 {[%clk 0:00:04]}  Re6 {[%clk 0:00:07]} 61. Ka4 {[%clk 0:00:03]}  Re1 {[%clk 0:00:07]} 62. Kb5 {[%clk 0:00:03]}  Rg1 {[%clk 0:00:06]} 63. f5 {[%clk 0:00:03]}  Rh1 {[%clk 0:00:06]} 64. h5 {[%clk 0:00:03]}  Kf6 {[%clk 0:00:05]} 65. Ka5 {[%clk 0:00:04]}  Kg5 {[%clk 0:00:05]} 66. b5 {[%clk 0:00:04]}  Ra1+ {[%clk 0:00:04]} 67. Kb6 {[%clk 0:00:04]}  Bd6 {[%clk 0:00:04]} 68. Kc6 {[%clk 0:00:05]}  Bf4 {[%clk 0:00:03]} 69. b6 {[%clk 0:00:03]}  Kxg4 {[%clk 0:00:02]} 70. b7 {[%clk 0:00:03]}  Rb1 {[%clk 0:00:01]} 71. f6 {[%clk 0:00:04]}  Kf5 {[%clk 0:00:01]} 72. Rxf4+ {[%clk 0:00:04]}  Kxf4 {[%clk 0:00:01]} 73. f7 {[%clk 0:00:05]}  Rc1+ {[%clk 0:00:02]} 74. Kd7 {[%clk 0:00:05]}  Rd1+ {[%clk 0:00:02]} 75. Ke7 {[%clk 0:00:06]}  Re1+ {[%clk 0:00:02]} 76. Kf6 {[%clk 0:00:06]}  Rf1 {[%clk 0:00:02]} 77. f8=Q {[%clk 0:00:05]}  Kg4+ {[%clk 0:00:03]} 78. Kg7 {[%clk 0:00:06]}  Rxf8 {[%clk 0:00:03]} 79. Kxf8 {[%clk 0:00:07]}  Kxh5 {[%clk 0:00:04]} 80. b8=Q {[%clk 0:00:07]} 1-0


[Site "https://www.chess.com"]

[Event "Titled Tuesday Blitz October 18 Late 2022"]
[White "Maksimovic, Bojan"]
[Black "Khumalo, Keith"]
[WhiteFideId "14408120"]
[BlackFideId "14319470"]
[WhiteElo "2447"]
[BlackElo "2056"]
[Result "1-0"]
[Round "05"]
[TimeControl "180+1"]
[Date "2022.10.18"]
[WhiteClock "0:00:03"]
[BlackClock "0:01:04"]

1. e4 {[%clk 0:02:48]}  c5 {[%clk 0:02:59]} 2. Nf3 {[%clk 0:02:48]}  d6 {[%clk 0:02:58]} 3. d4 {[%clk 0:02:49]}  cxd4 {[%clk 0:02:58]} 4. Nxd4 {[%clk 0:02:50]}  Nf6 {[%clk 0:02:59]} 5. Nc3 {[%clk 0:02:50]}  g6 {[%clk 0:03:00]} 6. Be3 {[%clk 0:02:51]}  Bg7 {[%clk 0:03:00]} 7. f3 {[%clk 0:02:51]}  O-O {[%clk 0:03:00]} 8. Qd2 {[%clk 0:02:52]}  Nc6 {[%clk 0:03:01]} 9. g4 {[%clk 0:02:52]}  Be6 {[%clk 0:03:00]} 10. O-O-O {[%clk 0:02:52]}  Qa5 {[%clk 0:02:59]} 11. Kb1 {[%clk 0:02:48]}  Rac8 {[%clk 0:02:52]} 12. Nxe6 {[%clk 0:02:08]}  fxe6 {[%clk 0:02:52]} 13. Bc4 {[%clk 0:02:08]}  Nd8 {[%clk 0:02:46]} 14. Bb3 {[%clk 0:02:08]}  Nd7 {[%clk 0:02:42]} 15. f4 {[%clk 0:01:22]}  Bxc3 {[%clk 0:02:22]} 16. bxc3 {[%clk 0:01:20]}  Qxc3 {[%clk 0:02:23]} 17. f5 {[%clk 0:01:10]}  Qxd2 {[%clk 0:02:18]} 18. Rxd2 {[%clk 0:01:11]}  Ne5 {[%clk 0:02:13]} 19. Bxa7 {[%clk 0:01:02]}  Nc4 {[%clk 0:02:10]} 20. Rg2 {[%clk 0:00:56]}  b5 {[%clk 0:02:03]} 21. Bd4 {[%clk 0:00:43]}  e5 {[%clk 0:01:59]} 22. Be3 {[%clk 0:00:38]}  Kg7 {[%clk 0:01:54]} 23. Bc1 {[%clk 0:00:38]}  Nc6 {[%clk 0:01:53]} 24. h4 {[%clk 0:00:38]}  Nd4 {[%clk 0:01:50]} 25. h5 {[%clk 0:00:36]}  Rh8 {[%clk 0:01:33]} 26. Rgh2 {[%clk 0:00:26]}  gxf5 {[%clk 0:01:32]} 27. h6+ {[%clk 0:00:27]}  Kf7 {[%clk 0:01:32]} 28. exf5 {[%clk 0:00:23]}  Rhg8 {[%clk 0:01:32]} 29. Rg2 {[%clk 0:00:22]}  e6 {[%clk 0:01:31]} 30. fxe6+ {[%clk 0:00:21]}  Kxe6 {[%clk 0:01:29]} 31. g5 {[%clk 0:00:21]}  Rg6 {[%clk 0:01:26]} 32. Rf1 {[%clk 0:00:21]}  Rc7 {[%clk 0:01:25]} 33. Rf8 {[%clk 0:00:21]}  Rf7 {[%clk 0:01:25]} 34. Re8+ {[%clk 0:00:21]}  Kd7 {[%clk 0:01:25]} 35. Rh8 {[%clk 0:00:21]}  Kc6 {[%clk 0:01:23]} 36. a4 {[%clk 0:00:19]}  d5 {[%clk 0:01:22]} 37. axb5+ {[%clk 0:00:18]}  Kxb5 {[%clk 0:01:22]} 38. Rb8+ {[%clk 0:00:19]}  Kc5 {[%clk 0:01:20]} 39. Rc8+ {[%clk 0:00:16]}  Kb5 {[%clk 0:01:20]} 40. Rb8+ {[%clk 0:00:17]}  Kc6 {[%clk 0:01:16]} 41. Bxc4 {[%clk 0:00:16]}  dxc4 {[%clk 0:01:16]} 42. Ba3 {[%clk 0:00:16]}  Kd5 {[%clk 0:01:15]} 43. Kb2 {[%clk 0:00:15]}  Rc7 {[%clk 0:01:13]} 44. Kc3 {[%clk 0:00:14]}  Ra6 {[%clk 0:01:10]} 45. Rd8+ {[%clk 0:00:14]}  Ke4 {[%clk 0:01:11]} 46. Bb4 {[%clk 0:00:12]}  Nb5+ {[%clk 0:01:11]} 47. Kd2 {[%clk 0:00:12]}  c3+ {[%clk 0:01:10]} 48. Ke2 {[%clk 0:00:08]}  Ra2 {[%clk 0:01:10]} 49. Kf1 {[%clk 0:00:07]}  Rf7+ {[%clk 0:01:09]} 50. Kg1 {[%clk 0:00:07]}  Nd4 {[%clk 0:01:05]} 51. Bxc3 {[%clk 0:00:07]}  Nf3+ {[%clk 0:01:04]} 52. Kf2 {[%clk 0:00:07]}  Rxc2+ {[%clk 0:01:03]} 53. Kg3 {[%clk 0:00:07]}  Rxc3 {[%clk 0:01:04]} 54. Re2+ {[%clk 0:00:07]}  Kf5 {[%clk 0:01:04]} 55. Rf2 {[%clk 0:00:03]}  Ke6 {[%clk 0:01:04]} 1-0


[Site "https://www.chess.com"]